[Event "Champions Chess Tour Finals 2024"]
[Date "2024.12.18"]
[White "Nepomniachtchi, Ian"]
[Black "Lazavik, Denis"]
[WhiteElo "2758"]
[BlackElo "2553"]
[Round "5.3"]
[Result "1-0"]
[TimeControl "600+2"]

1. e4 {[%clk 0:09:59]} c5 {[%clk 0:06:59]} 2. Nf3 {[%clk 0:09:58]} Nc6 {[%clk
0:06:58]} 3. Bb5 {[%clk 0:09:53]} e6 {[%clk 0:06:57]} 4. O-O {[%clk 0:09:45]}
Nge7 {[%clk 0:06:56]} 5. Re1 {[%clk 0:09:45]} b6 {[%clk 0:06:54]} 6. c3 {[%clk
0:09:36]} a6 {[%clk 0:06:53]} 7. Bf1 {[%clk 0:09:32]} d5 {[%clk 0:06:52]} 8. e5
{[%clk 0:09:28]} d4 {[%clk 0:06:50]} 9. Na3 {[%clk 0:09:24]} Bb7 {[%clk
0:06:45]} 10. Nc4 {[%clk 0:09:11]} Nd5 {[%clk 0:06:43]} 11. a4 {[%clk 0:08:59]}
Be7 {[%clk 0:06:40]} 12. Bd3 {[%clk 0:08:47]} O-O {[%clk 0:06:34]} 13. Be4
{[%clk 0:08:39]} b5 {[%clk 0:06:30]} 14. Na3 {[%clk 0:08:38]} Qb6 {[%clk
0:06:13]} 15. Qc2 {[%clk 0:08:22]} h6 {[%clk 0:06:09]} 16. d3 {[%clk 0:08:19]}
Rfd8 {[%clk 0:05:58]} 17. Bd2 {[%clk 0:08:16]} Rac8 {[%clk 0:05:55]} 18. Qc1
{[%clk 0:07:58]} Bf8 {[%clk 0:05:52]} 19. c4 {[%clk 0:07:56]} bxc4 {[%clk
0:05:46]} 20. Nxc4 {[%clk 0:07:55]} Qc7 {[%clk 0:05:45]} 21. a5 {[%clk 0:07:50]}
Ncb4 {[%clk 0:05:34]} 22. Ra3 {[%clk 0:07:46]} Rb8 {[%clk 0:05:29]} 23. h4
{[%clk 0:07:21]} Ne7 {[%clk 0:04:57]} 24. h5 {[%clk 0:07:06]} Bxe4 {[%clk
0:04:41]} 25. Rxe4 {[%clk 0:07:05]} Qc6 {[%clk 0:04:40]} 26. Rg4 {[%clk
0:07:04]} Nf5 {[%clk 0:04:39]} 27. Bxh6 {[%clk 0:06:54]} Kh8 {[%clk 0:03:45]}
28. Bg5 {[%clk 0:06:42]} Rd7 {[%clk 0:03:32]} 29. h6 {[%clk 0:06:41]} Nxh6
{[%clk 0:03:24]} 30. Bxh6 {[%clk 0:06:17]} gxh6 {[%clk 0:03:23]} 31. Qf4 {[%clk
0:06:16]} Bg7 {[%clk 0:03:07]} 32. Nd6 {[%clk 0:06:15]} Rf8 {[%clk 0:02:35]} 33.
Ne4 {[%clk 0:05:54]} Nd5 {[%clk 0:02:31]} 34. Qg3 {[%clk 0:05:53]} f5 {[%clk
0:02:19]} 35. exf6 {[%clk 0:05:53]} Nxf6 {[%clk 0:02:18]} 36. Ne5 {[%clk
0:05:36]} Nxe4 {[%clk 0:02:08]} 37. dxe4 {[%clk 0:05:35]} Qc7 {[%clk 0:01:57]}
38. Ng6+ {[%clk 0:05:26]} Kg8 {[%clk 0:01:56]} 39. Qh4 {[%clk 0:04:40]} d3
{[%clk 0:01:47]} 40. Nxf8 {[%clk 0:04:31]} d2 {[%clk 0:01:45]} 41. Rxg7+ {[%clk
0:04:30]} Rxg7 {[%clk 0:01:29]} 42. Rd3 {[%clk 0:04:29]} Qxa5 {[%clk 0:00:59]}
43. Nxe6 {[%clk 0:04:12]} Qa1+ {[%clk 0:00:38]} 44. Kh2 {[%clk 0:04:11]} Qf1
{[%clk 0:00:30]} 45. Rd8+ {[%clk 0:04:03]} Kh7 {[%clk 0:00:28]} 46. Nxg7 {[%clk
0:04:01]} 1-0

[Variant "Standard"]
[Site "Europe Echecs"]

[Event "Champions Chess Tour Finals 2024"]
[Date "2024.12.18"]
[White "Carlsen, Magnus"]
[Black "Firouzja, Alireza"]
[WhiteElo "2838"]
[BlackElo "2756"]
[Round "5.3"]
[Result "1/2-1/2"]
[TimeControl "600+2"]

1. Nf3 {[%clk 0:09:59]} d5 {[%clk 0:06:41]} 2. g3 {[%clk 0:09:54]} Nf6 {[%clk
0:06:38]} 3. Bg2 {[%clk 0:09:53]} c5 {[%clk 0:06:36]} 4. O-O {[%clk 0:09:50]}
Nc6 {[%clk 0:06:33]} 5. d3 {[%clk 0:09:34]} g6 {[%clk 0:06:27]} 6. Bf4 {[%clk
0:09:33]} Nh5 {[%clk 0:06:17]} 7. Bd2 {[%clk 0:09:26]} Bg7 {[%clk 0:06:16]} 8.
Qc1 {[%clk 0:09:24]} O-O {[%clk 0:06:04]} 9. Nc3 {[%clk 0:09:15]} Nf6 {[%clk
0:05:56]} 10. e4 {[%clk 0:08:45]} dxe4 {[%clk 0:05:31]} 11. dxe4 {[%clk
0:08:44]} Bg4 {[%clk 0:05:30]} 12. h3 {[%clk 0:08:39]} Bxf3 {[%clk 0:05:29]} 13.
Bxf3 {[%clk 0:08:38]} Nd7 {[%clk 0:05:28]} 14. Bg2 {[%clk 0:08:28]} Nde5 {[%clk
0:05:26]} 15. Bh6 {[%clk 0:08:07]} Nd4 {[%clk 0:05:19]} 16. Bxg7 {[%clk
0:08:01]} Kxg7 {[%clk 0:05:18]} 17. f4 {[%clk 0:07:59]} Nec6 {[%clk 0:05:13]}
18. Rf2 {[%clk 0:07:52]} c4 {[%clk 0:04:25]} 19. Nd5 {[%clk 0:07:36]} Qd6 {[%clk
0:03:43]} 20. c3 {[%clk 0:07:11]} Ne6 {[%clk 0:03:41]} 21. e5 {[%clk 0:06:42]}
Qc5 {[%clk 0:03:38]} 22. b4 {[%clk 0:06:34]} cxb3 {[%clk 0:03:36]} 23. axb3
{[%clk 0:06:33]} a5 {[%clk 0:03:35]} 24. Qe1 {[%clk 0:05:41]} Rfd8 {[%clk
0:03:23]} 25. Rd1 {[%clk 0:05:39]} Rd7 {[%clk 0:03:13]} 26. Kh2 {[%clk 0:05:25]}
Rad8 {[%clk 0:03:11]} 27. Rfd2 {[%clk 0:05:09]} b5 {[%clk 0:03:00]} 28. Rd3
{[%clk 0:03:32]} Qa7 {[%clk 0:02:29]} 29. b4 {[%clk 0:03:16]} axb4 {[%clk
0:02:26]} 30. cxb4 {[%clk 0:03:10]} Ncd4 {[%clk 0:02:20]} 31. Ra1 {[%clk
0:03:08]} Nc2 {[%clk 0:02:07]} 32. Rxa7 {[%clk 0:03:05]} Nxe1 {[%clk 0:02:06]}
33. Rxd7 {[%clk 0:03:03]} Rxd7 {[%clk 0:02:04]} 34. Rd1 {[%clk 0:02:56]} Nxg2
{[%clk 0:02:02]} 35. Kxg2 {[%clk 0:02:54]} Nc7 {[%clk 0:02:01]} 36. Nc3 {[%clk
0:02:54]} Rxd1 {[%clk 0:01:59]} 37. Nxd1 {[%clk 0:02:53]} Nd5 {[%clk 0:01:58]}
38. Kf3 {[%clk 0:02:52]} e6 {[%clk 0:01:48]} 39. Ke4 {[%clk 0:02:52]} h5 {[%clk
0:01:45]} 40. h4 {[%clk 0:02:48]} Nxb4 {[%clk 0:01:42]} 41. Nc3 {[%clk 0:02:47]}
Nc6 {[%clk 0:01:40]} 42. Nxb5 {[%clk 0:02:47]} Ne7 {[%clk 0:01:39]} 43. Nd6
{[%clk 0:02:46]} Nf5 {[%clk 0:01:22]} 44. Kf3 {[%clk 0:02:45]} Kf8 {[%clk
0:01:17]} 45. Ne4 {[%clk 0:02:44]} Kg7 {[%clk 0:01:16]} 46. Ng5 {[%clk 0:02:43]}
Kf8 {[%clk 0:01:15]} 47. Ne4 {[%clk 0:02:41]} Kg7 {[%clk 0:01:15]} 48. g4 {[%clk
0:02:40]} hxg4+ {[%clk 0:01:12]} 49. Kxg4 {[%clk 0:02:40]} Nh6+ {[%clk 0:01:09]}
50. Kg5 {[%clk 0:02:38]} Nf5 {[%clk 0:01:09]} 51. Nf6 {[%clk 0:02:34]} Nd4
{[%clk 0:01:04]} 52. Kg4 {[%clk 0:02:27]} Nf5 {[%clk 0:01:02]} 53. Kg5 {[%clk
0:02:20]} Nd4 {[%clk 0:01:01]} 54. h5 {[%clk 0:02:19]} gxh5 {[%clk 0:00:58]} 55.
Nxh5+ {[%clk 0:02:18]} Kf8 {[%clk 0:00:57]} 56. Kf6 {[%clk 0:02:16]} Ne2 {[%clk
0:00:54]} 57. Kg5 {[%clk 0:02:16]} Nd4 {[%clk 0:00:52]} 58. Ng3 {[%clk 0:02:15]}
Kg7 {[%clk 0:00:50]} 1/2-1/2

[Variant "Standard"]
[Site "Europe Echecs"]

[Event "Champions Chess Tour Finals 2024"]
[Date "2024.12.18"]
[White "Firouzja, Alireza"]
[Black "Vachier-Lagrave, Maxime"]
[WhiteElo "2756"]
[BlackElo "2763"]
[Round "6.1"]
[Result "1-0"]
[TimeControl "600+2"]

1. Nf3 {[%clk 0:10:02]} d5 {[%clk 0:10:03]} 2. c4 {[%clk 0:10:03]} d4 {[%clk
0:10:04]} 3. b4 {[%clk 0:10:03]} g5 {[%clk 0:10:04]} 4. h3 {[%clk 0:09:53]} h6
{[%clk 0:10:00]} 5. d3 {[%clk 0:09:35]} Bg7 {[%clk 0:09:59]} 6. g3 {[%clk
0:09:33]} e5 {[%clk 0:09:55]} 7. Bg2 {[%clk 0:09:34]} Ne7 {[%clk 0:09:56]} 8.
Nbd2 {[%clk 0:09:27]} O-O {[%clk 0:09:39]} 9. Qb3 {[%clk 0:09:13]} Be6 {[%clk
0:09:31]} 10. Ne4 {[%clk 0:08:06]} Nd7 {[%clk 0:09:30]} 11. g4 {[%clk 0:08:07]}
Ng6 {[%clk 0:09:20]} 12. h4 {[%clk 0:07:44]} gxh4 {[%clk 0:07:36]} 13. g5 {[%clk
0:07:44]} f5 {[%clk 0:07:25]} 14. gxh6 {[%clk 0:06:32]} fxe4 {[%clk 0:07:05]}
15. Ng5 {[%clk 0:06:13]} e3 {[%clk 0:04:46]} 16. Nxe6 {[%clk 0:05:47]} Qf6
{[%clk 0:04:47]} 17. c5 {[%clk 0:04:50]} Qxf2+ {[%clk 0:04:02]} 18. Kd1 {[%clk
0:04:51]} Bxh6 {[%clk 0:03:49]} 19. Nxf8+ {[%clk 0:04:43]} Kxf8 {[%clk 0:03:49]}
20. Rf1 {[%clk 0:04:38]} Qxf1+ {[%clk 0:03:29]} 21. Bxf1 {[%clk 0:04:39]} Ke7
{[%clk 0:03:31]} 22. Bh3 {[%clk 0:04:27]} 1-0

[Variant "Standard"]
[Site "Europe Echecs"]

[Event "Champions Chess Tour Finals 2024"]
[Date "2024.12.18"]
[White "Nepomniachtchi, Ian"]
[Black "Keymer, Vincent"]
[WhiteElo "2758"]
[BlackElo "2649"]
[Round "6.1"]
[Result "1-0"]
[TimeControl "600+2"]

1. e4 {[%clk 0:10:03]} e5 {[%clk 0:10:04]} 2. Nf3 {[%clk 0:10:03]} Nc6 {[%clk
0:10:04]} 3. Bc4 {[%clk 0:10:04]} Nf6 {[%clk 0:10:05]} 4. d3 {[%clk 0:10:06]}
Bc5 {[%clk 0:10:02]} 5. Nc3 {[%clk 0:10:06]} h6 {[%clk 0:10:03]} 6. a3 {[%clk
0:10:05]} d6 {[%clk 0:09:56]} 7. Na4 {[%clk 0:10:01]} Bb6 {[%clk 0:09:57]} 8.
O-O {[%clk 0:09:54]} O-O {[%clk 0:09:53]} 9. h3 {[%clk 0:09:49]} Re8 {[%clk
0:09:35]} 10. Re1 {[%clk 0:09:50]} Nd4 {[%clk 0:08:42]} 11. Nxd4 {[%clk
0:08:43]} Bxd4 {[%clk 0:08:42]} 12. c3 {[%clk 0:08:43]} Bb6 {[%clk 0:08:40]} 13.
Nxb6 {[%clk 0:08:23]} axb6 {[%clk 0:08:41]} 14. Bb3 {[%clk 0:08:24]} Be6 {[%clk
0:07:35]} 15. Bc2 {[%clk 0:08:25]} d5 {[%clk 0:07:36]} 16. Qf3 {[%clk 0:08:21]}
dxe4 {[%clk 0:07:09]} 17. dxe4 {[%clk 0:08:22]} Nd7 {[%clk 0:07:10]} 18. Qg3
{[%clk 0:08:13]} Qf6 {[%clk 0:06:33]} 19. f4 {[%clk 0:08:05]} Nc5 {[%clk
0:06:01]} 20. fxe5 {[%clk 0:07:47]} Qg6 {[%clk 0:06:01]} 21. Qxg6 {[%clk
0:06:45]} fxg6 {[%clk 0:06:02]} 22. Be3 {[%clk 0:06:37]} Bb3 {[%clk 0:05:40]}
23. Bxb3+ {[%clk 0:06:05]} Nxb3 {[%clk 0:05:40]} 24. Rad1 {[%clk 0:06:07]} Rxe5
{[%clk 0:04:59]} 25. Rd7 {[%clk 0:05:53]} Rxe4 {[%clk 0:04:02]} 26. Bf2 {[%clk
0:05:54]} Rxe1+ {[%clk 0:03:33]} 27. Bxe1 {[%clk 0:05:55]} Rc8 {[%clk 0:03:04]}
28. Bg3 {[%clk 0:05:44]} Nc5 {[%clk 0:03:02]} 29. Re7 {[%clk 0:05:39]} Kf8
{[%clk 0:02:05]} 30. Rxc7 {[%clk 0:05:40]} Rxc7 {[%clk 0:02:05]} 31. Bxc7 {[%clk
0:05:41]} Nd3 {[%clk 0:01:53]} 32. b3 {[%clk 0:04:24]} b5 {[%clk 0:01:54]} 33.
Kf1 {[%clk 0:04:23]} Ke7 {[%clk 0:01:32]} 34. Bb6 {[%clk 0:04:19]} g5 {[%clk
0:01:25]} 35. Be3 {[%clk 0:04:12]} Ke6 {[%clk 0:00:53]} 36. Ke2 {[%clk 0:04:13]}
Nf4+ {[%clk 0:00:33]} 37. Kf3 {[%clk 0:04:14]} Nd5 {[%clk 0:00:33]} 38. Bd4
{[%clk 0:04:02]} g6 {[%clk 0:00:34]} 39. g3 {[%clk 0:03:39]} Ne7 {[%clk
0:00:34]} 40. Ke4 {[%clk 0:03:30]} Nc6 {[%clk 0:00:30]} 41. Bg7 {[%clk 0:02:59]}
h5 {[%clk 0:00:29]} 42. Bh6 {[%clk 0:02:44]} g4 {[%clk 0:00:30]} 43. hxg4 {[%clk
0:02:37]} hxg4 {[%clk 0:00:31]} 44. a4 {[%clk 0:02:17]} bxa4 {[%clk 0:00:31]}
45. bxa4 {[%clk 0:02:18]} Ne5 {[%clk 0:00:16]} 46. Bf4 {[%clk 0:02:13]} Nc6
{[%clk 0:00:13]} 47. Be3 {[%clk 0:02:06]} Ne7 {[%clk 0:00:13]} 48. c4 {[%clk
0:01:43]} Nc6 {[%clk 0:00:14]} 49. Bf4 {[%clk 0:01:34]} Na5 {[%clk 0:00:11]} 50.
Kd4 {[%clk 0:01:32]} Nb3+ {[%clk 0:00:12]} 51. Kc3 {[%clk 0:01:32]} Nc5 {[%clk
0:00:13]} 52. a5 {[%clk 0:01:33]} g5 {[%clk 0:00:12]} 53. Bb8 {[%clk 0:01:30]}
Na6 {[%clk 0:00:07]} 54. Ba7 {[%clk 0:01:31]} Nc7 {[%clk 0:00:07]} 55. Kd4
{[%clk 0:01:26]} Ne8 {[%clk 0:00:07]} 56. Bb8 {[%clk 0:01:26]} Ng7 {[%clk
0:00:06]} 57. Kc5 {[%clk 0:01:23]} Kd7 {[%clk 0:00:06]} 58. Be5 {[%clk 0:01:20]}
Nf5 {[%clk 0:00:07]} 59. Kb6 {[%clk 0:01:20]} Kc8 {[%clk 0:00:06]} 60. c5 {[%clk
0:01:01]} Ne7 {[%clk 0:00:08]} 61. c6 {[%clk 0:00:34]} Nxc6 {[%clk 0:00:05]} 62.
a6 {[%clk 0:00:35]} bxa6 {[%clk 0:00:04]} 63. Kxc6 {[%clk 0:00:36]} a5 {[%clk
0:00:03]} 64. Kb5 {[%clk 0:00:37]} 1-0

[Variant "Standard"]
[Site "Europe Echecs"]

[Event "Champions Chess Tour Finals 2024"]
[Date "2024.12.18"]
[White "Carlsen, Magnus"]
[Black "Aronian, Levon"]
[WhiteElo "2838"]
[BlackElo "2818"]
[Round "6.1"]
[Result "1-0"]
[TimeControl "600+2"]

1. e4 {[%clk 0:10:03]} c5 {[%clk 0:10:03]} 2. Nf3 {[%clk 0:10:03]} d6 {[%clk
0:10:04]} 3. d4 {[%clk 0:10:03]} cxd4 {[%clk 0:10:05]} 4. Nxd4 {[%clk 0:10:02]}
Nf6 {[%clk 0:10:06]} 5. Nc3 {[%clk 0:10:02]} a6 {[%clk 0:10:06]} 6. Be2 {[%clk
0:09:31]} e5 {[%clk 0:10:07]} 7. Nb3 {[%clk 0:09:32]} Be7 {[%clk 0:10:05]} 8.
Bg5 {[%clk 0:08:58]} Be6 {[%clk 0:10:02]} 9. Bxf6 {[%clk 0:08:58]} Bxf6 {[%clk
0:10:02]} 10. Qd3 {[%clk 0:08:59]} O-O {[%clk 0:10:02]} 11. O-O-O {[%clk
0:08:53]} Be7 {[%clk 0:10:03]} 12. Nd5 {[%clk 0:08:51]} Bxd5 {[%clk 0:10:03]}
13. Qxd5 {[%clk 0:08:52]} Qb6 {[%clk 0:10:04]} 14. Rhf1 {[%clk 0:08:41]} Nd7
{[%clk 0:10:04]} 15. Nd2 {[%clk 0:08:11]} Bg5 {[%clk 0:09:26]} 16. Kb1 {[%clk
0:08:02]} Nf6 {[%clk 0:09:27]} 17. Qb3 {[%clk 0:08:03]} Qc7 {[%clk 0:08:01]} 18.
Nc4 {[%clk 0:07:27]} b5 {[%clk 0:07:24]} 19. Nxd6 {[%clk 0:07:28]} Rad8 {[%clk
0:07:25]} 20. Qa3 {[%clk 0:07:12]} Qc6 {[%clk 0:06:40]} 21. f3 {[%clk 0:06:57]}
g6 {[%clk 0:06:17]} 22. c4 {[%clk 0:06:54]} b4 {[%clk 0:06:15]} 23. Qxb4 {[%clk
0:06:55]} Be3 {[%clk 0:06:16]} 24. Nb7 {[%clk 0:05:41]} Rb8 {[%clk 0:05:46]} 25.
Na5 {[%clk 0:05:41]} Qc7 {[%clk 0:05:47]} 26. Qa4 {[%clk 0:05:37]} Rb6 {[%clk
0:04:03]} 27. Nb3 {[%clk 0:05:21]} Bc5 {[%clk 0:03:36]} 28. Nxc5 {[%clk
0:04:32]} Qxc5 {[%clk 0:03:37]} 29. Rd2 {[%clk 0:04:31]} Rfb8 {[%clk 0:03:30]}
30. Rfd1 {[%clk 0:04:30]} Kg7 {[%clk 0:03:30]} 31. Rc2 {[%clk 0:03:53]} a5
{[%clk 0:03:20]} 32. a3 {[%clk 0:03:53]} h5 {[%clk 0:02:15]} 33. h4 {[%clk
0:03:48]} Rb3 {[%clk 0:01:27]} 34. Ka2 {[%clk 0:03:49]} Qb6 {[%clk 0:01:04]} 35.
Rdd2 {[%clk 0:03:43]} Nd7 {[%clk 0:00:58]} 36. Qxd7 {[%clk 0:03:21]} Rxa3+
{[%clk 0:00:58]} 37. Kb1 {[%clk 0:03:22]} Qb3 {[%clk 0:00:46]} 38. Rd3 {[%clk
0:03:15]} Qa2+ {[%clk 0:00:32]} 39. Kc1 {[%clk 0:03:16]} Qa1+ {[%clk 0:00:33]}
40. Kd2 {[%clk 0:03:17]} Ra2 {[%clk 0:00:35]} 41. b3 {[%clk 0:02:55]} a4 {[%clk
0:00:36]} 42. Rxa2 {[%clk 0:02:39]} Qxa2+ {[%clk 0:00:38]} 43. Ke3 {[%clk
0:02:40]} axb3 {[%clk 0:00:39]} 44. Qc7 {[%clk 0:02:31]} b2 {[%clk 0:00:39]} 45.
Qxe5+ {[%clk 0:02:26]} Kh7 {[%clk 0:00:39]} 46. Rd7 {[%clk 0:02:14]} Rf8 {[%clk
0:00:10]} 47. Bd3 {[%clk 0:02:15]} b1=Q {[%clk 0:00:10]} 48. Bxb1 {[%clk
0:02:15]} Qxb1 {[%clk 0:00:12]} 49. Kf2 {[%clk 0:00:38]} Qc2+ {[%clk 0:00:09]}
50. Kg3 {[%clk 0:00:39]} Qxc4 {[%clk 0:00:11]} 51. Qd5 {[%clk 0:00:40]} Qxd5
{[%clk 0:00:12]} 52. exd5 {[%clk 0:00:41]} Kg7 {[%clk 0:00:12]} 53. Kf4 {[%clk
0:00:42]} Re8 {[%clk 0:00:06]} 54. Ra7 {[%clk 0:00:31]} Re2 {[%clk 0:00:06]} 55.
g4 {[%clk 0:00:32]} hxg4 {[%clk 0:00:07]} 56. fxg4 {[%clk 0:00:33]} Kf8 {[%clk
0:00:07]} 57. d6 {[%clk 0:00:25]} Ke8 {[%clk 0:00:07]} 58. Kg5 {[%clk 0:00:19]}
Re4 {[%clk 0:00:05]} 59. Ra8+ {[%clk 0:00:12]} Kd7 {[%clk 0:00:06]} 60. Rf8
{[%clk 0:00:13]} f5 {[%clk 0:00:06]} 61. gxf5 {[%clk 0:00:14]} gxf5 {[%clk
0:00:07]} 62. h5 {[%clk 0:00:14]} Kxd6 {[%clk 0:00:04]} 63. h6 {[%clk 0:00:15]}
Rg4+ {[%clk 0:00:04]} 64. Kh5 {[%clk 0:00:16]} Rg2 {[%clk 0:00:04]} 65. h7
{[%clk 0:00:17]} Rh2+ {[%clk 0:00:05]} 66. Kg6 {[%clk 0:00:18]} f4 {[%clk
0:00:05]} 67. h8=Q {[%clk 0:00:09]} 1-0

[Variant "Standard"]
[Site "Europe Echecs"]

[Event "Champions Chess Tour Finals 2024"]
[Date "2024.12.18"]
[White "So, Wesley"]
[Black "Lazavik, Denis"]
[WhiteElo "2826"]
[BlackElo "2553"]
[Round "6.1"]
[Result "0-1"]
[TimeControl "600+2"]

1. e4 {[%clk 0:10:03]} c5 {[%clk 0:10:01]} 2. Nf3 {[%clk 0:10:03]} Nc6 {[%clk
0:10:02]} 3. d4 {[%clk 0:10:02]} cxd4 {[%clk 0:10:02]} 4. Nxd4 {[%clk 0:10:04]}
Nf6 {[%clk 0:10:03]} 5. Nc3 {[%clk 0:10:05]} e5 {[%clk 0:10:03]} 6. Ndb5 {[%clk
0:10:06]} d6 {[%clk 0:10:04]} 7. Nd5 {[%clk 0:10:07]} Nxd5 {[%clk 0:10:04]} 8.
exd5 {[%clk 0:10:08]} Nb8 {[%clk 0:10:04]} 9. Qf3 {[%clk 0:09:56]} a6 {[%clk
0:09:51]} 10. Qa3 {[%clk 0:09:56]} Be7 {[%clk 0:09:50]} 11. Bd2 {[%clk 0:09:56]}
O-O {[%clk 0:09:39]} 12. Bb4 {[%clk 0:09:17]} axb5 {[%clk 0:09:18]} 13. Qxa8
{[%clk 0:09:16]} Na6 {[%clk 0:09:14]} 14. Bd2 {[%clk 0:08:37]} Bg5 {[%clk
0:04:43]} 15. Bxg5 {[%clk 0:07:40]} Qxg5 {[%clk 0:04:44]} 16. Bxb5 {[%clk
0:05:49]} Qxg2 {[%clk 0:03:15]} 17. O-O-O {[%clk 0:05:47]} Qxf2 {[%clk 0:03:14]}
18. Rd2 {[%clk 0:04:04]} Qf4 {[%clk 0:01:49]} 19. Rf1 {[%clk 0:03:07]} Qh6
{[%clk 0:01:46]} 20. Bxa6 {[%clk 0:03:01]} bxa6 {[%clk 0:01:47]} 21. Qa7 {[%clk
0:02:54]} f5 {[%clk 0:01:38]} 22. Rg1 {[%clk 0:02:44]} f4 {[%clk 0:01:23]} 23.
Kb1 {[%clk 0:02:31]} e4 {[%clk 0:01:10]} 24. Rd4 {[%clk 0:02:18]} Bf5 {[%clk
0:01:02]} 25. Rb4 {[%clk 0:02:10]} e3 {[%clk 0:00:27]} 26. Rb7 {[%clk 0:01:59]}
g6 {[%clk 0:00:18]} 27. Re7 {[%clk 0:01:11]} Qxh2 {[%clk 0:00:08]} 28. Rc1
{[%clk 0:01:12]} Qh6 {[%clk 0:00:08]} 29. a4 {[%clk 0:01:11]} g5 {[%clk
0:00:07]} 30. Qxa6 {[%clk 0:01:04]} Qf6 {[%clk 0:00:07]} 31. Qa7 {[%clk
0:00:53]} g4 {[%clk 0:00:05]} 32. Rf1 {[%clk 0:00:42]} Bg6 {[%clk 0:00:05]} 33.
Rxe3 {[%clk 0:00:26]} f3 {[%clk 0:00:06]} 34. Rg1 {[%clk 0:00:14]} f2 {[%clk
0:00:06]} 35. Rf1 {[%clk 0:00:15]} Rf7 {[%clk 0:00:05]} 36. Qb6 {[%clk 0:00:08]}
Kg7 {[%clk 0:00:05]} 37. a5 {[%clk 0:00:09]} Qf4 {[%clk 0:00:04]} 38. Qb3 {[%clk
0:00:07]} h5 {[%clk 0:00:04]} 39. Qc3+ {[%clk 0:00:06]} Kh6 {[%clk 0:00:05]} 40.
Re6 {[%clk 0:00:05]} g3 {[%clk 0:00:05]} 41. Qh8+ {[%clk 0:00:06]} Kg5 {[%clk
0:00:06]} 42. Qd8+ {[%clk 0:00:07]} Rf6 {[%clk 0:00:07]} 43. Rd1 {[%clk
0:00:03]} f1=R {[%clk 0:00:07]} 44. Rxf1 {[%clk 0:00:04]} Qxf1+ {[%clk 0:00:08]}
45. Ka2 {[%clk 0:00:05]} g2 {[%clk 0:00:09]} 46. Qxd6 {[%clk 0:00:04]} Rxe6
{[%clk 0:00:08]} 47. dxe6 {[%clk 0:00:04]} g1=Q {[%clk 0:00:09]} 48. Qe5+ {[%clk
0:00:04]} Qf5 {[%clk 0:00:09]} 0-1

[Variant "Standard"]
[Site "Europe Echecs"]

[Event "Champions Chess Tour Finals 2024"]
[Date "2024.12.18"]
[White "Vachier-Lagrave, Maxime"]
[Black "Firouzja, Alireza"]
[WhiteElo "2763"]
[BlackElo "2756"]
[Round "6.2"]
[Result "1/2-1/2"]
[TimeControl "600+2"]

1. e4 {[%clk 0:10:03]} e5 {[%clk 0:10:04]} 2. Nf3 {[%clk 0:10:04]} Nf6 {[%clk
0:10:04]} 3. Nxe5 {[%clk 0:10:05]} d6 {[%clk 0:10:06]} 4. Nf3 {[%clk 0:10:06]}
Nxe4 {[%clk 0:10:07]} 5. d4 {[%clk 0:10:07]} d5 {[%clk 0:10:07]} 6. Bd3 {[%clk
0:10:08]} Be7 {[%clk 0:10:04]} 7. O-O {[%clk 0:10:07]} Bf5 {[%clk 0:10:03]} 8.
c4 {[%clk 0:10:03]} Nc6 {[%clk 0:08:58]} 9. Nc3 {[%clk 0:08:17]} Nxc3 {[%clk
0:08:52]} 10. bxc3 {[%clk 0:08:19]} Bxd3 {[%clk 0:08:49]} 11. Qxd3 {[%clk
0:08:20]} dxc4 {[%clk 0:08:45]} 12. Qxc4 {[%clk 0:08:20]} O-O {[%clk 0:08:45]}
13. Rb1 {[%clk 0:08:14]} Bd6 {[%clk 0:08:32]} 14. Qd3 {[%clk 0:08:02]} b6 {[%clk
0:06:21]} 15. Ng5 {[%clk 0:08:02]} g6 {[%clk 0:06:22]} 16. Qh3 {[%clk 0:08:03]}
h5 {[%clk 0:06:17]} 17. g4 {[%clk 0:07:36]} Be7 {[%clk 0:05:17]} 18. Rb5 {[%clk
0:06:03]} Qd7 {[%clk 0:03:45]} 19. gxh5 {[%clk 0:05:55]} Qxh3 {[%clk 0:03:45]}
20. Nxh3 {[%clk 0:05:55]} a6 {[%clk 0:03:46]} 21. Rd5 {[%clk 0:05:52]} Rad8
{[%clk 0:03:40]} 22. Rxd8 {[%clk 0:05:48]} Rxd8 {[%clk 0:03:41]} 23. hxg6 {[%clk
0:05:48]} fxg6 {[%clk 0:03:42]} 24. Re1 {[%clk 0:05:31]} Kf7 {[%clk 0:03:12]}
25. Nf4 {[%clk 0:04:50]} Bd6 {[%clk 0:02:45]} 26. Ne6 {[%clk 0:04:31]} Rh8
{[%clk 0:02:26]} 27. Bf4 {[%clk 0:04:05]} Bxf4 {[%clk 0:01:25]} 28. Nxf4 {[%clk
0:04:05]} Nd8 {[%clk 0:01:23]} 29. Kg2 {[%clk 0:03:40]} g5 {[%clk 0:01:20]} 30.
Nd3 {[%clk 0:03:29]} Kf6 {[%clk 0:01:15]} 31. f4 {[%clk 0:03:10]} Ne6 {[%clk
0:00:55]} 32. fxg5+ {[%clk 0:03:11]} Nxg5 {[%clk 0:00:56]} 33. Re3 {[%clk
0:02:14]} Ne6 {[%clk 0:00:47]} 34. d5 {[%clk 0:01:54]} Ng7 {[%clk 0:00:44]} 35.
Re4 {[%clk 0:01:26]} Nf5 {[%clk 0:00:40]} 36. Re6+ {[%clk 0:01:27]} Kg5 {[%clk
0:00:40]} 37. Ne5 {[%clk 0:01:12]} Ne3+ {[%clk 0:00:29]} 38. Kf3 {[%clk
0:01:12]} Nxd5 {[%clk 0:00:16]} 39. Nf7+ {[%clk 0:00:49]} Kf5 {[%clk 0:00:17]}
40. Re5+ {[%clk 0:00:50]} Kf6 {[%clk 0:00:18]} 41. Rxd5 {[%clk 0:00:51]} Kxf7
{[%clk 0:00:18]} 42. Kg3 {[%clk 0:00:51]} Ke6 {[%clk 0:00:15]} 43. Rd4 {[%clk
0:00:44]} c5 {[%clk 0:00:12]} 44. Ra4 {[%clk 0:00:42]} Rg8+ {[%clk 0:00:11]} 45.
Kf3 {[%clk 0:00:42]} Rh8 {[%clk 0:00:10]} 46. h4 {[%clk 0:00:41]} a5 {[%clk
0:00:07]} 47. Re4+ {[%clk 0:00:39]} Kf5 {[%clk 0:00:07]} 48. a4 {[%clk 0:00:34]}
Rd8 {[%clk 0:00:06]} 49. Rf4+ {[%clk 0:00:32]} Kg6 {[%clk 0:00:07]} 50. Kg4
{[%clk 0:00:30]} Rd6 {[%clk 0:00:06]} 51. Re4 {[%clk 0:00:18]} Kh6 {[%clk
0:00:04]} 52. Kf5 {[%clk 0:00:14]} Rd3 {[%clk 0:00:05]} 53. Rc4 {[%clk 0:00:09]}
Kh5 {[%clk 0:00:05]} 54. Ke4 {[%clk 0:00:10]} Rd1 {[%clk 0:00:05]} 55. Ke3
{[%clk 0:00:08]} Rd8 {[%clk 0:00:05]} 56. Rf4 {[%clk 0:00:08]} Rd6 {[%clk
0:00:05]} 57. Ke4 {[%clk 0:00:08]} Rd1 {[%clk 0:00:06]} 58. Ke5 {[%clk 0:00:06]}
Rd2 {[%clk 0:00:05]} 59. Rf6 {[%clk 0:00:04]} Rb2 {[%clk 0:00:05]} 60. Kd5
{[%clk 0:00:05]} Kxh4 {[%clk 0:00:05]} 61. Kc4 {[%clk 0:00:04]} Kg5 {[%clk
0:00:06]} 62. Rf1 {[%clk 0:00:05]} Kg4 {[%clk 0:00:06]} 63. Kd5 {[%clk 0:00:06]}
Rb3 {[%clk 0:00:06]} 64. Rc1 {[%clk 0:00:06]} Kf4 {[%clk 0:00:06]} 65. Kc4
{[%clk 0:00:07]} Rb2 {[%clk 0:00:07]} 66. Re1 {[%clk 0:00:08]} Kf5 {[%clk
0:00:07]} 67. Kd5 {[%clk 0:00:09]} Rb3 {[%clk 0:00:08]} 68. c4 {[%clk 0:00:09]}
Rb4 {[%clk 0:00:09]} 69. Rf1 {[%clk 0:00:10]} Kg5 {[%clk 0:00:09]} 70. Kc6
{[%clk 0:00:10]} Rxa4 {[%clk 0:00:09]} 71. Kxb6 {[%clk 0:00:11]} Rxc4 {[%clk
0:00:10]} 72. Kxa5 {[%clk 0:00:12]} 1/2-1/2

[Variant "Standard"]
[Site "Europe Echecs"]